bitfinex-derivatives/quotes_BTCF0:USTF0_20250720
["timestamp","ask_amount","ask_price","bid_price","bid_amount"]
[1752999976221,1.27476422,118290.0,118280.0,0.50759436]
[1752999977026,1.27476422,118290.0,118280.0,0.38027467]
[1752999977321,1.44386222,118290.0,118280.0,0.38027467]
[1752999978223,1.44386222,118290.0,118280.0,0.50759436]
[1752999978521,1.27487422,118290.0,118280.0,0.50759436]
[1752999979722,1.20690375,118290.0,118280.0,0.50759436]
[1752999980222,1.37589205,118290.0,118280.0,0.50759436]
[1752999981116,1.20690375,118290.0,118280.0,0.50759436]
[1752999981312,1.20806575,118290.0,118280.0,0.50759436]
[1752999982427,1.37705405,118290.0,118280.0,0.38027467]
[1752999982617,1.37705405,118290.0,118280.0,0.50759436]
[1752999982820,1.37705405,118290.0,118280.0,0.38027467]
[1752999985631,1.24973436,118290.0,118280.0,0.38027467]
[1752999985832,1.37705405,118290.0,118280.0,0.38027467]
[1752999987824,1.01625405,118290.0,118280.0,0.38027467]
[1752999988032,1.37705405,118290.0,118280.0,0.38027467]
[1752999990935,1.37705405,118290.0,118280.0,0.31960777]
[1752999992244,1.37705405,118290.0,118280.0,0.38027467]
[1752999993644,1.24973436,118290.0,118280.0,0.38027467]
[1752999993839,1.37705405,118290.0,118280.0,0.38027467]
[1752999994441,1.24973436,118290.0,118280.0,0.38027467]
[1752999994743,1.37705405,118290.0,118280.0,0.38027467]
[1753000001251,1.37821605,118290.0,118280.0,0.38027467]
[1753000007861,1.37821605,118290.0,118280.0,0.37927467]
[1753000008060,1.73901605,118290.0,118280.0,0.38027467]
[1753000010764,1.73983549,118290.0,118280.0,0.38027467]
[1753000011167,1.37903549,118290.0,118280.0,0.38027467]
[1753000014669,1.37903549,118290.0,118280.0,0.37927467]
[1753000014867,1.37903549,118290.0,118280.0,0.38027467]
[1753000015069,1.37903549,118290.0,118280.0,0.37927467]
[1753000015265,1.37903549,118290.0,118280.0,0.38027467]
[1753000015967,1.37903549,118290.0,118280.0,0.37927467]
[1753000016168,1.37903549,118290.0,118280.0,0.31960777]
[1753000019970,1.37903549,118290.0,118280.0,0.38027467]
[1753000020173,1.37903549,118290.0,118280.0,0.37927467]
[1753000020361,1.37903549,118290.0,118280.0,0.38027467]
[1753000020664,1.37903549,118290.0,118280.0,0.31960777]
[1753000021774,1.37903549,118290.0,118280.0,0.38027467]
[1753000027480,1.37903549,118290.0,118280.0,0.37927467]
[1753000027681,1.37903549,118290.0,118280.0,0.38027467]
[1753000030080,1.37903549,118290.0,118280.0,0.37927467]
[1753000030278,1.37903549,118290.0,118280.0,0.38027467]
[1753000030679,1.2517158,118290.0,118280.0,0.38027467]
[1753000030983,1.37903549,118290.0,118280.0,0.38027467]
[1753000031971,1.37903549,118290.0,118280.0,0.37927467]
[1753000032172,1.37903549,118290.0,118280.0,0.38027467]
[1753000034779,1.3955408,118290.0,118280.0,0.31960777]
[1753000036183,1.52286049,118290.0,118280.0,0.31960777]
[1753000037182,1.59066848,118290.0,118280.0,0.31960777]
[1753000037683,2.76002848,118290.0,118280.0,0.31960777]
[1753000040580,2.7600275,118290.0,118280.0,0.31960777]
[1753000041977,2.63270781,118290.0,118280.0,0.31960777]
[1753000042281,2.7600275,118290.0,118280.0,0.31960777]
[1753000042588,2.7600275,118290.0,118280.0,0.31860777]
[1753000042787,2.63270781,118290.0,118280.0,0.31960777]
[1753000043188,2.61620348,118290.0,118280.0,0.31960777]
[1753000043487,2.61620348,118290.0,118280.0,0.38027467]
[1753000044187,2.74352317,118290.0,118280.0,0.3233063]
[1753000044388,2.76002731,118290.0,118280.0,0.2626394]
[1753000044689,2.76002731,118290.0,118280.0,0.2636394]
[1753000045390,2.74352317,118290.0,118280.0,0.2636394]
[1753000045887,3.10432317,118290.0,118280.0,0.27201]
[1753000046087,2.38272317,118290.0,118280.0,0.2636394]
[1753000046288,3.10432317,118290.0,118280.0,0.2636394]
[1753000046587,3.10432317,118290.0,118280.0,0.0783069]
[1753000046781,3.10432317,118290.0,118280.0,0.2473094]
[1753000046982,3.10432317,118290.0,118280.0,0.2757394]
[1753000047383,3.10432317,118290.0,118280.0,0.0783069]
[1753000047884,3.10432317,118290.0,118280.0,0.0773069]
[1753000048390,3.10432317,118290.0,118280.0,0.01664]
[1753000048589,3.10432317,118290.0,118280.0,0.00323]
[1753000049890,3.12082406,118290.0,118280.0,0.04879879]
[1753000051382,3.42700545,118290.0,118260.0,0.0606669]
[1753000051582,0.199751,118260.0,118250.0,0.1356269]
[1753000051784,1.69338144,118260.0,118250.0,0.3046722]
[1753000052192,1.4673012,118260.0,118250.0,0.3046722]
[1753000052788,0.8829812,118260.0,118250.0,0.3086722]
[1753000052997,1.4673012,118260.0,118250.0,0.3086722]
[1753000053494,1.4673012,118260.0,118250.0,0.07896]
[1753000054195,1.4673012,118260.0,118250.0,0.08196]
[1753000057299,1.59462089,118260.0,118250.0,0.04665]
[1753000057494,1.59462089,118260.0,118250.0,0.03543]
[1753000060605,1.4673012,118260.0,118250.0,0.03543]
[1753000061009,1.4673012,118260.0,118250.0,0.04665]
[1753000061210,1.4673012,118260.0,118250.0,0.08196]
[1753000063007,1.4673012,118260.0,118250.0,0.2510053]
[1753000065012,1.4673012,118260.0,118250.0,0.08196]
[1753000065412,1.8281012,118260.0,118250.0,0.08196]
[1753000068919,1.8281012,118260.0,118250.0,0.2510053]
[1753000069110,1.2437812,118260.0,118250.0,0.2510053]
[1753000069310,1.8281412,118260.0,118250.0,0.2510053]
[1753000070417,1.2437812,118260.0,118250.0,0.2510053]
[1753000070918,1.8281012,118260.0,118250.0,0.2510053]
[1753000071811,0.77411051,118260.0,118250.0,0.42581499]
[1753000072013,1.00759082,118260.0,118250.0,0.42581499]
[1753000072214,0.6779102,118260.0,118250.0,0.42581499]
[1753000072410,1.2622302,118260.0,118250.0,0.42581499]
[1753000072809,1.13491051,118260.0,118250.0,0.42581499]
[1753000073614,1.13491051,118260.0,118250.0,0.2984953]
[1753000073810,0.39255082,118260.0,118250.0,0.42581499]
[1753000074013,0.74339051,118260.0,118250.0,0.47124291]
[1753000074217,0.03175082,118260.0,118250.0,0.83204291]
[1753000074420,0.03175082,118260.0,118250.0,1.7584906]
[1753000074615,0.61607082,118260.0,118250.0,1.63117091]
[1753000075115,0.61607082,118260.0,118250.0,1.58574299]
[1753000075313,0.5870875,118260.0,118250.0,1.58574299]
[1753000075519,0.5870875,118260.0,118250.0,1.66502042]
[1753000076115,0.0028075,118260.0,118250.0,1.79234011]
[1753000076316,0.12731969,118280.0,118270.0,0.2949867]
[1753000076317,0.13298969,118280.0,118270.0,0.2949867]
[1753000076522,0.71726969,118280.0,118270.0,0.4677386]
[1753000077819,0.71726969,118280.0,118270.0,0.4687386]
[1753000078125,0.71718969,118280.0,118270.0,0.4687386]
[1753000079918,0.74176969,118280.0,118270.0,0.4687386]
[1753000080120,0.61445,118280.0,118270.0,0.53650581]
[1753000080319,0.74176969,118280.0,118270.0,0.53650581]
[1753000080625,0.74176969,118280.0,118270.0,0.4910736]
[1753000082128,0.74176969,118280.0,118270.0,0.89729015]
[1753000082626,0.74176969,118280.0,118270.0,0.8518736]
[1753000083226,0.74176969,118280.0,118270.0,0.8972788]
[1753000083619,0.74176969,118280.0,118270.0,0.76995911]
[1753000083819,0.74176969,118280.0,118270.0,0.8972788]
[1753000084226,0.15756969,118280.0,118270.0,0.8972788]
[1753000084430,0.74168969,118280.0,118270.0,0.8972788]
[1753000085228,0.74681969,118280.0,118270.0,0.8972788]
[1753000086729,0.90607938,118280.0,118270.0,0.40915911]
[1753000086932,0.91631938,118280.0,118270.0,0.40915911]
[1753000087130,1.08532178,118280.0,118270.0,0.40915911]
[1753000087530,1.08532178,118280.0,118270.0,0.41126911]
[1753000088032,0.91631938,118280.0,118270.0,0.41126911]
[1753000088328,1.27711938,118280.0,118270.0,0.41126911]
[1753000088532,0.91631938,118280.0,118270.0,0.41126911]
[1753000088832,1.27711938,118280.0,118270.0,0.41126911]
[1753000093634,0.91631938,118280.0,118270.0,0.41126911]
[1753000093935,1.27711938,118280.0,118270.0,0.41126911]
[1753000094638,1.02248,118280.0,118270.0,0.41126911]
[1753000094833,1.27711938,118280.0,118270.0,0.41126911]
[1753000095734,0.91631938,118280.0,118270.0,0.41126911]
[1753000096037,0.91615938,118280.0,118270.0,0.41126911]
[1753000096236,0.78883969,118280.0,118270.0,0.41126911]
[1753000096432,0.91615938,118280.0,118270.0,0.5385888]
[1753000096634,1.27695938,118280.0,118270.0,0.5385888]
[1753000097134,1.44596178,118280.0,118270.0,0.5385888]
[1753000097341,1.44596178,118280.0,118270.0,0.41126911]
[1753000098834,1.27695938,118280.0,118270.0,0.41126911]
[1753000099737,1.27695938,118280.0,118270.0,0.36586391]
[1753000100342,0.91615938,118280.0,118270.0,0.4931836]
[1753000101038,1.27695938,118280.0,118270.0,0.4931836]
[1753000101341,0.91615938,118280.0,118270.0,0.5538505]
[1753000101534,1.27695938,118280.0,118270.0,0.5538505]
[1753000101739,1.27695938,118280.0,118270.0,0.42653081]
[1753000101939,0.91615938,118280.0,118270.0,0.42653081]
[1753000102335,1.44596178,118280.0,118270.0,0.42653081]
[1753000103944,1.08516178,118280.0,118270.0,0.42653081]
[1753000106333,0.95784209,118280.0,118270.0,0.5538505]
[1753000106537,1.31864209,118280.0,118270.0,0.5538505]
[1753000106739,0.95784209,118280.0,118270.0,0.5538505]
[1753000107241,1.44836178,118280.0,118270.0,0.42670975]
[1753000107446,1.32104209,118280.0,118270.0,0.42670975]
[1753000112450,1.33750418,118280.0,118270.0,0.36586391]
[1753000113647,1.21018449,118280.0,118270.0,0.36586391]
[1753000113852,1.33750418,118280.0,118270.0,0.36586391]
[1753000118644,1.33750418,118280.0,118270.0,0.4931836]
[1753000119255,1.33750418,118280.0,118270.0,0.36586391]
[1753000119460,1.33750418,118280.0,118270.0,0.4931836]
[1753000119955,0.75374418,118280.0,118270.0,0.4931836]
[1753000120153,1.33742418,118280.0,118270.0,0.4931836]
[1753000120556,1.33742418,118280.0,118270.0,0.51186496]
[1753000121355,1.33742418,118280.0,118270.0,0.38454527]
[1753000121556,1.33742418,118280.0,118270.0,0.51186496]
[1753000121857,1.46474387,118280.0,118270.0,0.38454527]
[1753000122053,1.46474387,118280.0,118270.0,0.51186496]
[1753000122447,0.86440178,118280.0,118270.0,0.5727108]
[1753000122650,1.44808178,118280.0,118270.0,0.5727108]
[1753000122852,1.1934424,118280.0,118270.0,0.5727108]
[1753000123053,1.32076209,118280.0,118270.0,0.5727108]
[1753000123555,0.73708209,118280.0,118270.0,0.5727108]
[1753000123757,1.32072209,118280.0,118270.0,0.5727108]
[1753000130757,0.95992209,118280.0,118270.0,0.5727108]
[1753000131061,1.32072209,118280.0,118270.0,0.5727108]
[1753000134462,1.44804178,118280.0,118270.0,0.5727108]
[1753000134961,1.32072209,118280.0,118270.0,0.5727108]
[1753000136762,1.32072209,118280.0,118270.0,0.55402944]
[1753000138062,1.1934024,118280.0,118270.0,0.55402944]
[1753000138268,1.32072209,118280.0,118270.0,0.55402944]
[1753000139563,1.32072209,118280.0,118270.0,0.4931836]
[1753000139967,1.33500163,118280.0,118270.0,0.4931836]
[1753000140570,1.20768194,118280.0,118270.0,0.4931836]
[1753000140769,1.16599923,118280.0,118270.0,0.4931836]
[1753000140970,0.78851969,118280.0,118270.0,0.4931836]
[1753000142670,0.78851969,118280.0,118270.0,0.51201195]
[1753000143067,0.03538,118280.0,118270.0,0.51201195]
[1753000143261,1.16936,118290.0,118280.0,0.2157525]
[1753000143466,1.16936,118290.0,118280.0,0.60229698]
[1753000143467,1.75284,118290.0,118280.0,0.60229698]
[1753000144175,1.75284,118290.0,118280.0,0.60341698]
[1753000145467,1.75284,118290.0,118280.0,0.60552698]
[1753000145672,1.16936,118290.0,118280.0,0.60552698]
[1753000145860,1.7528,118290.0,118280.0,0.60552698]
[1753000146569,0.58344,118290.0,118280.0,0.60552698]
[1753000146873,0.61165,118290.0,118280.0,1.09307238]
[1753000149073,0.61392,118290.0,118280.0,1.09307238]
[1753000149268,0.65237,118290.0,118280.0,1.09307238]
[1753000150068,0.65237,118290.0,118280.0,1.03220728]
[1753000150874,0.65237,118290.0,118280.0,0.67140728]
[1753000151177,1.14048969,118290.0,118280.0,0.54408759]
[1753000156477,1.01317,118290.0,118280.0,0.54408759]
[1753000156674,0.77030969,118290.0,118280.0,0.54408759]
[1753000156875,0.64299,118290.0,118280.0,0.67140728]
[1753000157080,0.61392,118290.0,118280.0,0.67140728]
[1753000157886,0.97472,118290.0,118280.0,0.67140728]
[1753000158084,1.10203969,118290.0,118280.0,0.4167679]
[1753000158284,1.10203969,118290.0,118280.0,0.54408759]
[1753000158582,1.10203969,118290.0,118280.0,0.4167679]
[1753000158787,1.10203969,118290.0,118280.0,0.67140728]
[1753000159780,0.74123969,118290.0,118280.0,0.67140728]
[1753000160384,1.28787013,118290.0,118280.0,0.54408759]
[1753000160584,1.11888183,118290.0,118280.0,0.54408759]
[1753000160785,1.11888183,118290.0,118280.0,0.67140728]
[1753000161092,0.99156214,118290.0,118280.0,0.67140728]
[1753000161297,1.11888183,118290.0,118280.0,0.67140728]
[1753000161787,1.28787013,118290.0,118280.0,0.67140728]
[1753000162289,1.28787013,118290.0,118280.0,0.54408759]
[1753000162987,1.28787013,118290.0,118280.0,0.4167679]
[1753000163184,1.28787013,118290.0,118280.0,0.54408759]
[1753000163390,1.28787013,118290.0,118280.0,0.4167679]
[1753000163583,1.28787013,118290.0,118280.0,0.54408759]
[1753000165391,1.31622013,118290.0,118280.0,0.54408759]
[1753000166391,1.31622013,118290.0,118280.0,0.4167679]
[1753000166593,1.32538013,118290.0,118280.0,0.54408759]
[1753000167198,1.32538013,118290.0,118280.0,0.60495269]
[1753000167492,1.32538013,118290.0,118280.0,0.477633]
[1753000167691,1.32538013,118290.0,118280.0,0.60495269]
[1753000168193,1.32538013,118290.0,118280.0,0.477633]
[1753000168391,1.32538013,118290.0,118280.0,0.60495269]
[1753000168795,1.32538013,118290.0,118280.0,0.54408759]
[1753000170193,1.32538013,118290.0,118280.0,0.4167679]
[1753000170494,1.32538013,118290.0,118280.0,0.54408759]
[1753000171698,1.32538013,118290.0,118280.0,0.4167679]
[1753000171898,1.32538013,118290.0,118280.0,0.54408759]
[1753000172199,1.32538013,118290.0,118280.0,0.60495269]
[1753000172398,0.79559183,118290.0,118280.0,0.60495269]
[1753000173696,0.66827214,118290.0,118280.0,0.60495269]
[1753000173894,0.79559183,118290.0,118280.0,0.60495269]
[1753000174504,0.79559183,118290.0,118280.0,0.477633]
[1753000174710,0.79559183,118290.0,118280.0,0.60495269]
[1753000175795,0.66827214,118290.0,118280.0,0.60495269]
[1753000175991,0.79559183,118290.0,118280.0,0.60495269]
[1753000176497,0.79559183,118290.0,118280.0,0.477633]
[1753000176698,0.79559183,118290.0,118280.0,0.60495269]
[1753000177405,0.66827214,118290.0,118280.0,0.60495269]
[1753000177604,0.79559183,118290.0,118280.0,0.60495269]
[1753000180305,0.66827214,118290.0,118280.0,0.60495269]
[1753000180509,0.79559183,118290.0,118280.0,0.60495269]
[1753000181907,0.79559183,118290.0,118280.0,0.477633]
[1753000182109,0.79559183,118290.0,118280.0,0.60495269]
[1753000182304,0.79559183,118290.0,118280.0,0.477633]
[1753000182505,0.66827214,118290.0,118280.0,0.60495269]
[1753000182701,0.79559183,118290.0,118280.0,0.60495269]
[1753000183209,0.79559183,118290.0,118280.0,0.477633]
[1753000183407,0.21219183,118290.0,118280.0,0.60495269]
[1753000183607,0.79519183,118290.0,118280.0,0.60495269]
[1753000183800,0.20303183,118290.0,118280.0,0.477633]
[1753000184005,0.78603183,118290.0,118280.0,0.60495269]
[1753000184611,0.61352,118290.0,118280.0,0.60495269]
[1753000184812,0.74083969,118290.0,118280.0,0.60495269]
[1753000187410,0.76918969,118290.0,118280.0,0.477633]
[1753000187605,0.77834969,118290.0,118280.0,0.477633]
[1753000187810,0.77834969,118290.0,118280.0,0.60495269]
[1753000190308,0.77834969,118290.0,118280.0,0.477633]
[1753000190505,0.77834969,118290.0,118280.0,0.60495269]
[1753000193513,0.77834969,118290.0,118280.0,0.477633]
[1753000193713,0.77834969,118290.0,118280.0,0.60495269]
[1753000194811,1.13914969,118290.0,118280.0,0.60495269]
[1753000195012,1.13914969,118290.0,118280.0,0.477633]
[1753000195219,1.13914969,118290.0,118280.0,0.60495269]
[1753000196424,0.77834969,118290.0,118280.0,0.60495269]
[1753000196718,1.13914969,118290.0,118280.0,0.60495269]
[1753000196918,1.13914969,118290.0,118280.0,0.477633]
[1753000197118,1.13914969,118290.0,118280.0,0.60495269]
[1753000197819,1.13914969,118290.0,118280.0,0.477633]
[1753000198020,1.13914969,118290.0,118280.0,0.60495269]
[1753000198613,1.15659423,118290.0,118280.0,0.477633]
[1753000198813,1.15659423,118290.0,118280.0,0.60495269]
[1753000199622,1.15659423,118290.0,118280.0,0.477633]
[1753000199819,1.15659423,118290.0,118280.0,0.60495269]
[1753000200218,1.17325793,118290.0,118280.0,0.58975703]
[1753000201216,1.17325793,118290.0,118280.0,0.54408759]
[1753000203116,1.17325793,118290.0,118280.0,0.54296759]
[1753000203721,1.04593824,118290.0,118280.0,0.54296759]
[1753000203923,1.17325793,118290.0,118280.0,0.54296759]
[1753000205323,1.04593824,118290.0,118280.0,0.54296759]
[1753000205525,1.17325793,118290.0,118280.0,0.54296759]
[1753000206519,1.17325793,118290.0,118280.0,0.54408759]
[1753000206822,1.04593824,118290.0,118280.0,0.54408759]
[1753000207026,1.17325793,118290.0,118280.0,0.54408759]
[1753000208017,1.17325793,118290.0,118280.0,0.4167679]
[1753000208226,1.17325793,118290.0,118280.0,0.54408759]
[1753000209732,1.34224613,118290.0,118280.0,0.3591879]
[1753000210232,1.34224613,118290.0,118280.0,0.54116759]
[1753000210831,1.21492644,118290.0,118280.0,0.54116759]
[1753000211034,1.34224613,118290.0,118280.0,0.54116759]
[1753000211730,1.34224613,118290.0,118280.0,0.4138479]
[1753000212334,1.46956582,118290.0,118280.0,0.2825983]
[1753000213235,1.34224613,118290.0,118280.0,0.2825983]
[1753000214330,1.17325793,118290.0,118280.0,0.3182683]
[1753000215833,1.17325793,118290.0,118280.0,0.3287983]
[1753000217733,1.34224623,118290.0,118280.0,0.3287983]
[1753000221738,1.34224623,118290.0,118280.0,0.45611799]
[1753000221923,1.04593824,118290.0,118280.0,0.45611799]
[1753000222124,1.17325793,118290.0,118280.0,0.45611799]
[1753000222331,1.17325793,118290.0,118280.0,0.47343799]
[1753000222530,1.17325793,118290.0,118280.0,0.50024799]
[1753000223537,0.59025793,118290.0,118280.0,0.50024799]
[1753000223736,1.13550793,118290.0,118280.0,0.62756768]
[1753000223935,1.13550793,118290.0,118280.0,0.50024799]
[1753000224128,1.17030793,118290.0,118280.0,0.50024799]
[1753000224837,0.80950793,118290.0,118280.0,0.50024799]
[1753000225340,1.17030793,118290.0,118280.0,0.50024799]
[1753000226842,1.04298824,118290.0,118280.0,0.50024799]
[1753000227038,1.17030793,118290.0,118280.0,0.50024799]
[1753000228444,1.17030793,118290.0,118280.0,0.3729283]
[1753000228743,1.17030793,118290.0,118280.0,0.50024799]
[1753000236164,0.80950793,118290.0,118280.0,0.50024799]
[1753000236454,0.68218824,118290.0,118280.0,0.54591743]
[1753000236661,1.17030793,118290.0,118280.0,0.50024799]
[1753000239561,1.17030793,118290.0,118280.0,0.3729283]
[1753000239763,1.17030793,118290.0,118280.0,0.50024799]
[1753000240964,1.17030793,118290.0,118280.0,0.54591743]
[1753000243266,1.17030793,118290.0,118280.0,0.50024799]
[1753000244669,1.04298824,118290.0,118280.0,0.50024799]
[1753000244869,1.17030793,118290.0,118280.0,0.50024799]
[1753000246866,0.80950793,118290.0,118280.0,0.50024799]
[1753000247068,1.17030793,118290.0,118280.0,0.50024799]
[1753000248768,1.17030793,118290.0,118280.0,0.3729283]
[1753000249267,1.17030793,118290.0,118280.0,0.50024799]
[1753000249566,1.17030793,118290.0,118280.0,0.3729283]
[1753000249770,1.33929603,118290.0,118280.0,0.3729283]
[1753000249957,1.33929603,118290.0,118280.0,0.50024799]
[1753000252070,1.17030793,118290.0,118280.0,0.50024799]
[1753000252772,0.58754793,118290.0,118280.0,0.50024799]
[1753000253070,1.17026793,118290.0,118280.0,0.50024799]
[1753000253270,1.04294824,118290.0,118280.0,0.54591743]
[1753000253470,1.17026793,118290.0,118280.0,0.54591743]
[1753000256774,1.17026793,118290.0,118280.0,0.41859774]
[1753000256967,1.17026793,118290.0,118280.0,0.54591743]
[1753000257773,1.17026793,118290.0,118280.0,0.41859774]
[1753000257969,1.17026793,118290.0,118280.0,0.54591743]
[1753000259072,1.17027935,118290.0,118280.0,0.54591743]
[1753000259674,1.17027935,118290.0,118280.0,0.41859774]
[1753000259875,1.17027935,118290.0,118280.0,0.54591743]
[1753000260170,1.17023935,118290.0,118280.0,0.54591743]
[1753000261177,1.17023935,118290.0,118280.0,0.41859774]
[1753000261371,1.17023935,118290.0,118280.0,0.54591743]
[1753000264474,1.17019935,118290.0,118280.0,0.54591743]
[1753000264874,1.17019935,118290.0,118280.0,0.41859774]
[1753000265175,1.17019935,118290.0,118280.0,0.54591743]
[1753000268477,1.04287966,118290.0,118280.0,0.54591743]
[1753000268680,1.17019935,118290.0,118280.0,0.41859774]
[1753000268982,1.17019935,118290.0,118280.0,0.54591743]
[1753000270782,1.17019935,118290.0,118280.0,0.41859774]
[1753000270982,1.17019935,118290.0,118280.0,0.54591743]
[1753000272781,0.58755935,118290.0,118280.0,0.54591743]
[1753000272982,1.17015935,118290.0,118280.0,0.54591743]
[1753000273582,0.58755935,118290.0,118280.0,0.54591743]
[1753000273784,1.17015935,118290.0,118280.0,0.54591743]
[1753000274288,1.04283966,118290.0,118280.0,0.54591743]
[1753000274484,1.17015935,118290.0,118280.0,0.54591743]
[1753000275985,0.80935935,118290.0,118280.0,0.54591743]
[1753000276186,1.17015935,118290.0,118280.0,0.54591743]
[1753000278689,1.04283966,118290.0,118280.0,0.54591743]
[1753000278888,1.17015935,118290.0,118280.0,0.54591743]
[1753000279791,1.17015935,118290.0,118280.0,0.41859774]
[1753000279987,1.17015935,118290.0,118280.0,0.54591743]
[1753000281792,1.33914735,118290.0,118280.0,0.54591743]
[1753000282295,1.21182766,118290.0,118280.0,0.54591743]
[1753000282591,1.17015935,118290.0,118280.0,0.54591743]
[1753000283792,1.17015935,118290.0,118280.0,0.41859774]
[1753000289193,1.04283966,118290.0,118280.0,0.41859774]
[1753000289395,1.17015935,118290.0,118280.0,0.41859774]
[1753000293196,1.17015935,118290.0,118280.0,0.3729283]
[1753000295393,1.04283966,118290.0,118280.0,0.3729283]
[1753000295598,1.17015935,118290.0,118280.0,0.3729283]
[1753000298801,1.33914735,118290.0,118280.0,0.3729283]
[1753000303909,1.21182766,118290.0,118280.0,0.3729283]
[1753000304108,1.33914735,118290.0,118280.0,0.3729283]
[1753000307811,0.97834735,118290.0,118280.0,0.3729283]
[1753000308012,1.33914735,118290.0,118280.0,0.3729283]
[1753000313019,0.97834735,118290.0,118280.0,0.3729283]
[1753000313214,1.33914735,118290.0,118280.0,0.3729283]
[1753000313720,1.33886735,118290.0,118280.0,0.3729283]
[1753000314920,0.97806735,118290.0,118280.0,0.3729283]
[1753000315121,1.33886735,118290.0,118280.0,0.3729283]
[1753000317021,0.97806735,118290.0,118280.0,0.3729283]
[1753000317223,1.33886735,118290.0,118280.0,0.3729283]
[1753000318022,0.97806735,118290.0,118280.0,0.3729283]
[1753000318220,1.33886735,118290.0,118280.0,0.3729283]
[1753000318924,0.96062281,118290.0,118280.0,0.3729283]
[1753000319112,1.32142281,118290.0,118280.0,0.3729283]
[1753000319725,1.19410312,118290.0,118280.0,0.3729283]
[1753000319923,1.32142281,118290.0,118280.0,0.3729283]
[1753000320923,0.61178312,118290.0,118280.0,0.3729283]
[1753000321124,1.32138281,118290.0,118280.0,0.3729283]
[1753000322625,1.19406312,118290.0,118280.0,0.3729283]
[1753000322825,1.32138281,118290.0,118280.0,0.3729283]
[1753000325726,0.96058281,118290.0,118280.0,0.3729283]
[1753000326021,1.32138281,118290.0,118280.0,0.3729283]
[1753000326427,0.96058281,118290.0,118280.0,0.3729283]
[1753000326719,1.4487025,118290.0,118280.0,0.3355883]
[1753000326926,1.8095025,118290.0,118280.0,0.2825983]
[1753000327320,1.8095025,118290.0,118280.0,0.2403501]
[1753000330630,1.8095025,118290.0,118280.0,0.2144801]
[1753000331131,1.8095025,118290.0,118280.0,0.2377601]
[1753000334035,1.8095025,118290.0,118280.0,0.1955126]
[1753000339539,1.87749569,118290.0,118280.0,0.1955126]
[1753000341440,1.15589569,118290.0,118280.0,0.1955126]
[1753000341635,1.87749569,118290.0,118280.0,0.00323]
[1753000342530,1.87749569,118290.0,118280.0,0.02651]
[1753000343233,1.93836305,118290.0,118280.0,0.02651]
[1753000344239,1.93836305,118290.0,118280.0,0.00323]
[1753000345143,1.93836305,118290.0,118280.0,0.02715]
[1753000348440,1.93836305,118290.0,118280.0,0.00323]
[1753000349345,1.21676305,118290.0,118280.0,0.00323]
[1753000349551,1.93836305,118290.0,118280.0,0.00323]
[1753000351751,1.21676305,118290.0,118280.0,0.00323]
[1753000351951,1.93836305,118290.0,118280.0,0.00323]
[1753000352139,1.93836305,118290.0,118280.0,0.1722322]
[1753000352343,1.93836305,118290.0,118280.0,0.1961522]
[1753000353250,1.87749569,118290.0,118280.0,0.1961522]
[1753000354454,1.87725569,118290.0,118280.0,0.1961522]
[1753000359450,1.87725569,118290.0,118280.0,0.2264322]
[1753000359451,1.62261631,118290.0,118280.0,0.2264322]
[1753000359751,1.87725569,118290.0,118280.0,0.2264322]
[1753000364356,1.87725569,118290.0,118280.0,0.05743]
[1753000366060,1.87725569,118290.0,118280.0,0.2264322]
[1753000373359,1.15565569,118290.0,118280.0,0.2264322]
[1753000373662,3.04669569,118290.0,118280.0,0.2264322]
[1753000376465,2.32509569,118290.0,118280.0,0.2264322]
[1753000376663,3.04669569,118290.0,118280.0,0.2264322]
[1753000378866,2.32509569,118290.0,118280.0,0.2264322]
[1753000379067,3.04669569,118290.0,118280.0,0.2264322]
[1753000379767,2.32509569,118290.0,118280.0,0.2264322]
[1753000379969,3.04669569,118290.0,118280.0,0.2264322]
[1753000380369,2.79205631,118290.0,118280.0,0.2264322]
[1753000380670,3.04669569,118290.0,118280.0,0.2264322]
[1753000381372,2.32509569,118290.0,118280.0,0.2264322]
[1753000381569,3.04669569,118290.0,118280.0,0.2264322]
[1753000383270,3.12277989,118290.0,118280.0,0.2264322]
[1753000383460,2.54073989,118290.0,118280.0,0.2264322]
[1753000383767,3.12253989,118290.0,118280.0,0.2264322]
[1753000385470,2.40093989,118290.0,118280.0,0.2264322]
[1753000385671,3.12253989,118290.0,118280.0,0.2264322]
[1753000386867,2.40093989,118290.0,118280.0,0.2264322]
[1753000387166,3.12253989,118290.0,118280.0,0.2264322]
[1753000393278,3.04645569,118290.0,118280.0,0.2264322]
[1753000394682,2.79181631,118290.0,118280.0,0.2264322]
[1753000394878,3.04645569,118290.0,118280.0,0.2264322]
[1753000396982,3.02978057,118290.0,118280.0,0.2264322]
[1753000397181,3.04645582,118290.0,118280.0,0.2264322]
[1753000399987,3.04645582,118290.0,118280.0,0.2355422]
[1753000401784,2.32485582,118290.0,118280.0,0.2355422]
[1753000401988,3.04645582,118290.0,118280.0,0.2355422]
[1753000402792,2.32485582,118290.0,118280.0,0.2355422]
[1753000402990,3.04645582,118290.0,118280.0,0.2355422]
[1753000407391,2.32485582,118290.0,118280.0,0.2355422]
[1753000407691,3.02978057,118290.0,118280.0,0.2355422]
[1753000407892,3.04645591,118290.0,118280.0,0.2355422]
[1753000408393,2.32485591,118290.0,118280.0,0.2355422]
[1753000408593,3.04645591,118290.0,118280.0,0.2355422]
[1753000408894,2.32485591,118290.0,118280.0,0.2355422]
[1753000409191,3.04645591,118290.0,118280.0,0.2355422]
[1753000415200,3.04645591,118290.0,118280.0,0.2344222]
[1753000416196,2.79181653,118290.0,118280.0,0.2344222]
[1753000416397,2.79181653,118290.0,118280.0,0.2510722]
[1753000416602,3.04645591,118290.0,118280.0,0.2510722]
[1753000417901,2.79181653,118290.0,118280.0,0.2510722]
[1753000418103,3.04645591,118290.0,118280.0,0.2510722]
[1753000418702,2.79181653,118290.0,118280.0,0.2510722]
[1753000418903,3.04645591,118290.0,118280.0,0.2510722]
[1753000421408,3.02978057,118290.0,118280.0,0.2510722]
[1753000428414,2.30818057,118290.0,118280.0,0.2510722]
[1753000428613,3.02978057,118290.0,118280.0,0.2510722]
[1753000433306,3.09067202,118290.0,118280.0,0.2510722]
[1753000439917,2.36907202,118290.0,118280.0,0.2510722]
[1753000440121,3.09067202,118290.0,118280.0,0.2510722]
[1753000441123,2.36907202,118290.0,118280.0,0.2510722]
[1753000441320,3.09067202,118290.0,118280.0,0.2510722]
[1753000441719,2.36907202,118290.0,118280.0,0.2510722]
[1753000441923,3.09067202,118290.0,118280.0,0.2510722]
[1753000443322,3.02978057,118290.0,118280.0,0.2510722]
[1753000444724,2.30818057,118290.0,118280.0,0.2510722]
[1753000445023,3.02978057,118290.0,118280.0,0.2510722]
[1753000446826,2.30818057,118290.0,118280.0,0.2510722]
[1753000447024,3.02978057,118290.0,118280.0,0.2510722]
[1753000447726,2.30818057,118290.0,118280.0,0.2510722]
[1753000448128,3.02978057,118290.0,118280.0,0.2510722]
[1753000448722,2.30818057,118290.0,118280.0,0.2510722]
[1753000448926,3.02978057,118290.0,118280.0,0.2510722]
[1753000449120,2.30818057,118290.0,118280.0,0.2510722]
[1753000449323,3.02978057,118290.0,118280.0,0.2510722]